bitfinex-derivatives/quotes_SOLF0:USTF0_20250630
["timestamp","ask_amount","ask_price","bid_price","bid_amount"]
[1751274994774,6.6482,150.38,150.36,5.67361237]
[1751274994963,6.6482,150.38,150.35,33.34]
[1751274994964,6.6482,150.38,150.37,5.67361237]
[1751274995570,6.6479,150.39,150.37,5.67361237]
[1751274995769,6.6479,150.39,150.36,6.6488]
[1751274996063,6.6479,150.39,150.35,33.34]
[1751274996064,6.6479,150.39,150.37,12.32204358]
[1751274996270,6.6479,150.39,150.37,6.6486]
[1751274996671,6.6479,150.39,150.38,5.66782336]
[1751274997572,6.6479,150.39,150.36,6.6488]
[1751274997765,6.6479,150.39,150.37,5.66739291]
[1751274997966,6.6479,150.39,150.36,6.6488]
[1751274998172,6.6479,150.39,150.37,5.66739647]
[1751274998476,6.6479,150.39,150.36,6.6488]
[1751274998665,6.6479,150.39,150.37,12.3160296]
[1751274998973,6.6479,150.39,150.37,6.6486]
[1751275001979,6.6479,150.39,150.38,13.62]
[1751275003481,9.76120599,150.39,150.38,13.62]
[1751275007783,3.11330599,150.39,150.32,6.21853152]
[1751275008080,3.11330599,150.39,150.3,41.59652314]
[1751275008081,3.11330599,150.35,150.33,5.66972221]
[1751275008283,6.6502,150.34,150.3,33.3]
[1751275008482,6.6502,150.34,150.31,5.67289132]
[1751275008681,9.76350599,150.34,150.32,5.67289132]
[1751275008876,9.76350599,150.34,150.3,33.3]
[1751275009078,9.76350599,150.34,150.31,5.67292069]
[1751275009281,9.76350599,150.34,150.32,5.67292069]
[1751275009478,9.76350599,150.34,150.3,39.9515]
[1751275009680,3.11330599,150.34,150.31,5.67254729]
[1751275009887,3.11330599,150.34,150.32,5.67254729]
[1751275010080,3.11330599,150.34,150.3,39.9517]
[1751275010384,3.11330599,150.34,150.31,5.67268679]
[1751275010578,3.11330599,150.34,150.32,5.67268679]
[1751275010783,33.3,150.37,150.29,13.79]
[1751275010784,6.6513,150.31,150.29,13.79]
[1751275010987,3.11330599,150.31,150.29,13.79]
[1751275011684,6.6517,150.3,150.29,13.79]
[1751275011986,3.11330599,150.31,150.25,6.6537]
[1751275012282,6.6519,150.3,150.26,12.32659995]
[1751275012585,3.11330599,150.31,150.27,5.67319995]
[1751275012783,6.6524,150.29,150.28,5.67319995]
[1751275013287,6.6524,150.29,150.25,6.6536]
[1751275013479,3.11330599,150.29,150.26,5.67001831]
[1751275013675,3.11330599,150.29,150.24,39.9542]
[1751275013980,3.11330599,150.29,150.25,5.67101849]
[1751275014183,3.11330599,150.29,150.24,20.9942]
[1751275014483,3.11330599,150.29,150.25,5.66971726]
[1751275014685,6.6529,150.28,150.24,20.9942]
[1751275014878,6.6529,150.28,150.25,5.66971726]
[1751275015078,6.6529,150.28,150.24,20.9942]
[1751275015382,6.6529,150.28,150.25,5.67133856]
[1751275015583,6.6531,150.27,150.24,20.9942]
[1751275015880,9.76640599,150.27,150.25,5.67133856]
[1751275016186,9.76640599,150.27,150.24,14.34]
[1751275016488,6.6538,150.26,150.24,14.34]
[1751275017186,6.6539,150.25,150.24,14.34]
[1751275017480,6.6539,150.25,150.22,13.4944]
[1751275017686,6.6539,150.25,150.23,5.68776023]
[1751275017983,6.6539,150.25,150.22,11.1116]
[1751275018184,6.6547,150.24,150.21,39.9556]
[1751275018383,6.6547,150.24,150.21,33.3]
[1751275018583,6.6547,150.24,150.2,6.656]
[1751275018884,6.6547,150.24,150.21,5.68892709]
[1751275019082,6.6547,150.24,150.2,6.656]
[1751275019282,6.6547,150.24,150.21,5.68544764]
[1751275019483,6.6547,150.24,150.2,6.656]
[1751275019680,6.6547,150.24,150.21,5.68544764]
[1751275019885,6.6547,150.24,150.2,6.656]
[1751275020186,6.6547,150.24,150.21,5.68544764]
[1751275020387,6.6547,150.24,150.2,6.656]
[1751275020587,6.6548,150.23,150.2,6.656]
[1751275023385,6.6548,150.23,150.21,6.6556]
[1751275023987,6.6548,150.23,150.2,6.6559]
[1751275024487,6.6548,150.23,150.19,13.42]
[1751275024888,6.6548,150.23,150.2,6.656]
[1751275025586,6.6548,150.23,150.21,6.6556]
[1751275027485,6.6545,150.24,150.2,6.6559]
[1751275028080,3.11330599,150.25,150.19,13.42]
[1751275028286,36.43330599,150.25,150.19,20.0765]
[1751275028888,6.6551,150.23,150.2,6.6561]
[1751275030493,6.6551,150.23,150.19,13.42]
[1751275031194,6.6551,150.23,150.2,6.6558]
[1751275031596,6.6551,150.23,150.21,6.6555]
[1751275031997,6.6551,150.23,150.19,13.42]
[1751275032401,6.6551,150.23,150.2,6.6558]
[1751275033198,6.6551,150.23,150.21,6.6556]
[1751275037397,6.6551,150.23,150.2,6.6559]
[1751275038805,3.11330599,150.23,150.19,13.42]
[1751275039200,6.6553,150.22,150.19,13.42]
[1751275039896,6.6553,150.22,150.19,20.0765]
[1751275042307,6.6558,150.21,150.19,13.42]
[1751275045101,6.6561,150.2,150.19,13.42]
[1751275046508,6.658,150.16,150.13,104.17061304]
[1751275046707,9.77130599,150.16,150.13,104.17061304]
[1751275046907,3.11330599,150.16,150.12,13.4887]
[1751275047407,3.11330599,150.16,150.12,8.8356]
[1751275047408,6.6585,150.15,150.12,8.8356]
[1751275047608,3.11330599,150.16,150.12,8.8356]
[1751275048410,9.77150599,150.16,150.12,8.8356]
[1751275049310,6.6584,150.15,150.12,6.6595]
[1751275050005,6.6584,150.15,150.12,14.84828792]
[1751275050310,6.6589,150.14,150.11,26.2499]
[1751275050513,3.11330599,150.14,150.12,5.69701202]
[1751275050712,3.11330599,150.14,150.11,19.59]
[1751275050914,9.77240599,150.14,150.12,5.7345474]
[1751275051107,3.11330599,150.14,150.11,19.59]
[1751275051415,6.6597,150.12,150.11,19.59]
[1751275051911,9.77300599,150.12,150.08,8.9672]
[1751275052206,6.6603,150.11,150.09,5.73839192]
[1751275052405,6.6603,150.11,150.07,6.14159094]
[1751275052406,3.11330599,150.12,150.07,6.6617]
[1751275052610,3.11330599,150.12,150.08,5.74116877]
[1751275052811,3.11330599,150.12,150.09,5.74116877]
[1751275053002,6.6604,150.11,150.07,6.6617]
[1751275053205,6.6604,150.11,150.08,5.74168835]
[1751275053412,6.6604,150.11,150.09,5.74168835]
[1751275053606,33.3,150.13,150.1,5.73954558]
[1751275053808,33.3,150.13,150.08,3.11330599]
[1751275054012,33.3,150.13,150.09,5.73954558]
[1751275054208,33.3,150.13,150.1,5.73954558]
[1751275054411,33.3,150.13,150.08,3.11330599]
[1751275054618,33.3,150.13,150.09,5.74018792]
[1751275054920,39.9592,150.13,150.1,12.40048792]
[1751275055121,39.9592,150.13,150.1,6.6603]
[1751275055417,39.9592,150.13,150.09,6.6608]
[1751275055418,6.6597,150.12,150.09,6.6608]
[1751275055615,6.6597,150.12,150.1,5.74159118]
[1751275055814,6.6597,150.12,150.09,6.6608]
[1751275056020,6.6597,150.12,150.1,5.75532529]
[1751275056221,33.3,150.13,150.09,6.6608]
[1751275056423,33.3,150.13,150.1,5.75487564]
[1751275056721,33.3,150.13,150.09,6.6608]
[1751275056918,6.6599,150.12,150.1,5.7551781]
[1751275057119,6.6599,150.12,150.09,6.6608]
[1751275057418,6.6599,150.12,150.1,5.75645888]
[1751275057618,6.6599,150.12,150.09,6.6608]
[1751275057818,6.6599,150.12,150.1,5.75480352]
[1751275058013,39.9594,150.13,150.09,6.6608]
[1751275058216,39.9594,150.13,150.1,5.75480352]
[1751275058415,39.9594,150.13,150.09,6.6608]
[1751275058621,39.9594,150.13,150.1,5.75521874]
[1751275058816,39.9594,150.13,150.09,6.6608]
[1751275059017,39.9594,150.13,150.1,5.75521874]
[1751275059319,6.6597,150.12,150.1,6.6605]
[1751275059520,6.6597,150.12,150.08,18.78]
[1751275059716,6.6597,150.12,150.09,12.41602407]
[1751275059917,6.6597,150.12,150.09,6.6608]
[1751275064320,6.6604,150.11,150.08,25.4412]
[1751275064526,6.6604,150.11,150.09,5.75333239]
[1751275064719,6.6604,150.11,150.08,18.78]
[1751275064919,6.6604,150.11,150.09,5.75333239]
[1751275065122,6.6604,150.11,150.08,18.78]
[1751275065322,6.6604,150.11,150.09,5.75373576]
[1751275065521,6.6604,150.11,150.09,6.661]
[1751275065722,6.6598,150.12,150.08,18.78]
[1751275065927,6.6598,150.12,150.09,5.75221589]
[1751275066225,6.6598,150.12,150.09,6.6609]
[1751275067328,6.6598,150.12,150.1,6.6605]
[1751275068224,33.3,150.13,150.09,6.6608]
[1751275068426,6.6602,150.11,150.09,6.6608]
[1751275068928,6.6598,150.12,150.1,6.6601]
[1751275069628,39.9595,150.13,150.08,18.78]
[1751275069826,39.9595,150.13,150.09,5.75680399]
[1751275070026,33.3,150.13,150.08,21.89330599]
[1751275070223,33.3,150.13,150.11,6.6599]
[1751275070429,33.3,150.13,150.08,21.89330599]
[1751275070624,9.77250599,150.14,150.09,5.75784327]
[1751275070929,9.77250599,150.14,150.1,5.75784327]
[1751275071128,6.6585,150.15,150.08,21.89330599]
[1751275071325,6.6585,150.15,150.09,8.04122899]
[1751275071629,6.6585,150.15,150.1,5.74722899]
[1751275071832,6.6585,150.15,150.12,6.6593]
[1751275072133,6.659,150.14,150.12,6.6593]
[1751275075730,1.9991352,150.13,150.12,6.6593]
[1751275075926,6.6585,150.15,150.13,6.6592]
[1751275076125,1.9991352,150.14,150.13,6.6592]
[1751275078432,8.6579352,150.14,150.12,6.6595]
[1751275078633,1.9991352,150.13,150.12,6.6595]
[1751275079334,1.9991352,150.13,150.12,12.41278943]
[1751275086842,8.6583352,150.13,150.12,5.75328943]
[1751275087035,1.9991352,150.13,150.12,5.75328943]
[1751275088535,8.6583352,150.13,150.12,5.75328943]
[1751275088937,1.9991352,150.13,150.12,5.75328943]
[1751275094445,1.9991352,150.13,150.12,12.41298943]
[1751275094946,8.6583352,150.13,150.12,5.75328943]
[1751275100849,4.4705,150.18,150.12,5.75328943]
[1751275100850,6.659,150.14,150.12,5.75328943]
[1751275101147,1.9991352,150.15,150.13,5.80372122]
[1751275101341,1.9991352,150.15,150.14,5.80372122]
[1751275101544,4.4705,150.18,150.14,5.80372122]
[1751275101745,1.9991352,150.19,150.15,13.94444736]
[1751275101946,1.9991352,150.19,150.16,5.80372122]
[1751275102147,1.9991352,150.19,150.17,12.46092122]
[1751275102347,1.9991352,150.19,150.18,5.80372122]
[1751275102548,1.9991352,150.2,150.18,5.80372122]
[1751275102748,8.6552352,150.2,150.19,5.80372122]
[1751275103842,6.6561,150.2,150.19,5.80372122]
[1751275105555,9.77670283,150.21,150.19,5.80372122]
[1751275105752,9.77670283,150.21,150.2,5.80372122]
[1751275106455,4.5075,150.25,150.2,5.78671155]
[1751275106456,6.6554,150.22,150.2,5.78671155]
[1751275106656,6.6554,150.22,150.17,6.14159094]
[1751275106859,6.6554,150.22,150.18,12.41530921]
[1751275107154,6.655,150.23,150.19,5.75860921]
[1751275107352,3.12090283,150.22,150.2,5.75860921]
[1751275107550,3.12090283,150.22,150.16,6.14159094]
[1751275107745,3.12090283,150.22,150.17,5.75700327]
[1751275107948,3.12090283,150.22,150.18,5.75700327]
[1751275108153,3.12090283,150.22,150.19,5.75700327]
[1751275108357,3.12090283,150.22,150.17,6.6572]
[1751275108557,3.12090283,150.22,150.18,5.75620189]
[1751275108750,3.12090283,150.22,150.17,6.6572]
[1751275108751,3.12090283,150.22,150.19,5.75620189]
[1751275108951,6.6564,150.2,150.17,6.6572]
[1751275109253,6.6564,150.2,150.18,5.75660624]
[1751275109454,6.6564,150.2,150.19,5.75660624]
[1751275115362,9.77730283,150.2,150.19,5.75660624]
[1751275115660,3.12090283,150.2,150.15,6.14159094]
[1751275115860,3.12090283,150.18,150.16,5.75118009]
[1751275116059,3.12090283,150.18,150.13,6.659]
[1751275116060,3.12090283,150.18,150.13,6.14159094]
[1751275116260,6.6575,150.17,150.14,5.75273103]
[1751275116461,6.6575,150.17,150.15,5.75273103]
[1751275116663,6.6575,150.17,150.16,5.75273103]
[1751275118769,6.6584,150.15,150.11,6.14159094]
[1751275118968,6.6584,150.15,150.12,12.40804821]
[1751275119266,3.12090283,150.16,150.13,5.74864821]
[1751275119267,6.6589,150.14,150.13,5.74864821]
[1751275124464,9.77980283,150.14,150.13,5.74864821]
[1751275124875,9.77980283,150.14,150.12,19.62]
[1751275124876,6.6592,150.13,150.12,19.62]
[1751275125069,6.6592,150.13,150.12,25.39629213]
[1751275126479,6.6592,150.13,150.12,19.62]
[1751275128279,3.12090283,150.14,150.06,14.98979094]
[1751275128478,3.12090283,150.1,150.07,5.78549487]
[1751275128782,3.12090283,150.1,150.08,5.78549487]
[1751275128978,3.12090283,150.1,150.04,6.14159094]
[1751275129177,3.12090283,150.1,150.05,5.78694984]
[1751275129380,3.12090283,150.1,150.06,5.78694984]
[1751275129679,6.661,150.09,150.07,5.78694984]
[1751275129879,6.661,150.09,150.06,6.6621]
[1751275130182,6.661,150.09,150.07,5.78548264]
[1751275130384,6.661,150.09,150.06,6.6621]
[1751275130681,6.661,150.09,150.07,5.78349177]
[1751275130880,6.661,150.09,150.06,6.6621]
[1751275131077,6.661,150.09,150.07,5.78349177]
[1751275131276,6.661,150.09,150.06,6.6621]
[1751275131477,6.661,150.09,150.07,5.80921699]
[1751275131677,6.661,150.09,150.06,6.6621]
[1751275131881,6.661,150.09,150.07,5.80921699]
[1751275132084,6.661,150.09,150.06,6.6621]
[1751275132286,6.661,150.09,150.07,5.80921684]
[1751275132583,6.6615,150.08,150.05,6.6625]
[1751275132783,6.6615,150.08,150.06,5.80750041]
[1751275133085,3.12090283,150.1,150.07,5.80750041]
[1751275133278,6.6612,150.09,150.06,6.6623]
[1751275133478,6.6612,150.09,150.07,5.80593746]
[1751275133684,6.6612,150.09,150.06,6.6623]
[1751275133885,6.6612,150.09,150.07,5.80593746]
[1751275134080,6.6612,150.09,150.06,6.6623]
[1751275134384,6.6612,150.09,150.07,5.80664945]
[1751275134585,6.6612,150.09,150.06,6.6623]
[1751275134882,6.6612,150.09,150.07,5.80518278]
[1751275135082,6.6612,150.09,150.06,6.6623]
[1751275135281,6.6612,150.09,150.07,5.80477589]
[1751275135483,6.6612,150.09,150.06,6.6623]
[1751275136788,6.6615,150.08,150.05,6.6626]
[1751275136987,6.6615,150.08,150.06,5.80209678]
[1751275137192,6.6615,150.08,150.05,6.6626]
[1751275137382,6.6615,150.08,150.06,5.80250349]
[1751275137583,6.6615,150.08,150.05,6.6626]
[1751275137782,6.6615,150.08,150.06,5.80127373]
[1751275137983,6.6615,150.08,150.05,6.6626]
[1751275138285,6.6615,150.08,150.06,5.80127373]
[1751275138485,9.78240283,150.08,150.05,6.6626]
[1751275138683,6.6619,150.07,150.06,5.79552686]
[1751275139893,2.00103703,150.07,150.06,5.79552686]
[1751275140587,2.3829,150.12,150.06,5.79552686]
[1751275140785,2.00103703,150.08,150.04,20.01103703]
[1751275140989,2.00103703,150.08,150.05,5.80202233]
[1751275141190,2.00103703,150.08,150.06,5.80202233]
[1751275141388,2.00103703,150.09,150.05,2.00103703]
[1751275141691,2.00103703,150.09,150.06,7.80199709]
[1751275141886,3.12513553,150.11,150.05,4.4444]
[1751275142091,6.6609,150.1,150.07,6.6616]
[1751275144795,3.12513553,150.11,150.06,5.79729036]
[1751275145092,3.12513553,150.11,150.05,4.4444]
[1751275145394,3.12513553,150.11,150.09,6.6606]
[1751275146088,3.12513553,150.11,150.1,6.6605]
[1751275147492,9.78453553,150.13,150.11,6.6601]
[1751275147691,9.78453553,150.13,150.07,2.1876]
[1751275148085,9.78453553,150.13,150.1,6.6603]
[1751275148496,6.6597,150.12,150.08,3.12513553]
[1751275148696,6.6597,150.12,150.09,6.6607]
[1751275148898,3.12513553,150.13,150.09,6.6607]
[1751275149098,6.6602,150.11,150.09,6.6607]
[1751275151296,3.12513553,150.13,150.08,6.6612]
[1751275151493,3.12513553,150.13,150.09,5.79264843]
[1751275151694,6.6604,150.11,150.07,2.1876]
[1751275151895,6.6604,150.11,150.08,5.79265994]
[1751275152096,6.6604,150.11,150.09,5.79265994]
[1751275152297,6.6604,150.11,150.08,6.6612]
[1751275152497,6.6604,150.11,150.09,5.78067031]
[1751275152698,6.6604,150.11,150.08,6.6612]
[1751275152897,6.6604,150.11,150.09,5.78067031]
[1751275153099,6.6604,150.11,150.08,6.6612]
[1751275153297,6.6604,150.11,150.09,5.78120537]
[1751275153593,6.6605,150.1,150.08,6.6612]
[1751275153794,6.6605,150.1,150.09,5.78234008]
[1751275154296,6.6603,150.11,150.09,5.78234008]
[1751275154497,6.6603,150.11,150.08,6.6612]
[1751275154797,6.6603,150.11,150.09,5.78417481]
[1751275154996,6.6603,150.11,150.08,6.6612]
[1751275155198,6.6603,150.11,150.09,5.78417119]
[1751275155402,6.6605,150.1,150.07,8.8492]
[1751275155598,6.6605,150.1,150.08,5.78619692]
[1751275155896,6.6605,150.1,150.09,5.78619692]
[1751275158002,6.6603,150.11,150.09,5.78619692]
[1751275158297,6.6603,150.11,150.1,5.78619692]
[1751275160099,6.6594,150.13,150.11,6.66]
[1751275160400,6.6594,150.13,150.08,6.14159094]
[1751275160599,6.6594,150.13,150.09,5.80406723]
[1751275160803,6.6594,150.13,150.1,5.80406723]
[1751275160998,6.6594,150.13,150.11,5.80406723]
[1751275161199,6.6594,150.13,150.12,5.80406723]
[1751275161395,9.78413553,150.14,150.12,5.80406723]
[1751275161596,3.12513553,150.14,150.09,6.14159094]
[1751275161800,3.12513553,150.14,150.1,5.80954455]
[1751275162110,3.12513553,150.14,150.11,5.80954455]
[1751275162404,3.12513553,150.14,150.12,5.80954455]
[1751275162604,9.78393553,150.14,150.13,5.80954455]
[1751275163603,3.12513553,150.14,150.13,5.80954455]
[1751275163800,1.99912439,150.14,150.13,5.80954455]
[1751275164805,1.99912439,150.14,150.13,12.46874455]
[1751275167312,1.99912439,150.14,150.13,5.80954455]
[1751275169212,8.65792439,150.14,150.13,5.80954455]
[1751275169816,1.99912439,150.14,150.13,5.80954455]
[1751275170718,1.99912439,150.14,150.13,12.46874455]
[1751275170918,1.99912439,150.15,150.13,5.80954455]
[1751275171115,1.99912439,150.15,150.14,5.80954455]
[1751275171514,1.99912439,150.15,150.14,12.46834455]
[1751275172314,1.99912439,150.17,150.14,5.80954455]
[1751275172617,1.99912439,150.19,150.15,7.80866894]
[1751275172816,1.99912439,150.19,150.16,5.80954455]
[1751275173118,1.99912439,150.19,150.17,12.46674455]
[1751275173320,1.99912439,150.2,150.16,1.99912439]
[1751275173529,1.99912439,150.2,150.17,5.7875999]
[1751275173830,8.65542439,150.2,150.17,6.6571]
[1751275174022,1.99912439,150.2,150.17,6.6571]
[1751275174224,8.65562439,150.2,150.17,21.5671]
[1751275174425,1.99912439,150.2,150.17,21.5671]
[1751275174625,1.99912439,150.2,150.17,14.91]
[1751275175128,8.65602439,150.19,150.17,14.91]
[1751275175733,6.6569,150.19,150.17,14.91]
[1751275178132,6.6569,150.19,150.17,21.5674]
[1751275180634,6.657,150.18,150.17,14.91]
[1751275184644,6.6587,150.15,150.12,6.6595]
[1751275184837,3.12097415,150.15,150.13,5.75452729]
[1751275185038,3.12097415,150.15,150.12,6.6595]
[1751275185238,3.12097415,150.15,150.13,5.7554127]
[1751275185542,6.6588,150.14,150.12,6.6595]
[1751275185742,6.6588,150.14,150.13,5.7554127]
[1751275191538,9.77977415,150.14,150.13,5.7554127]
[1751275193142,6.6588,150.14,150.13,5.7554127]
[1751275194145,3.12097415,150.16,150.13,12.4146127]
[1751275194348,3.12097415,150.16,150.14,5.7554127]
[1751275194543,3.12097415,150.16,150.13,6.6592]
[1751275194749,9.77927415,150.16,150.14,5.78687691]
[1751275195049,9.77927415,150.16,150.13,6.6592]
[1751275195248,9.77927415,150.16,150.14,5.78678731]
[1751275195449,9.77927415,150.16,150.13,6.6592]
[1751275195651,9.77927415,150.16,150.14,5.78678731]
[1751275195849,6.6584,150.15,150.13,6.6592]
[1751275196042,6.6584,150.15,150.14,5.78678731]
[1751275198649,6.6581,150.16,150.14,5.78678731]
[1751275198850,6.6581,150.16,150.13,6.6592]
[1751275199050,6.6581,150.16,150.14,5.78860928]
[1751275199244,6.6581,150.16,150.15,5.78860928]
[1751275204454,6.6586,150.15,150.12,6.6594]
[1751275204655,6.6586,150.15,150.13,12.44571444]
[1751275204855,6.6586,150.15,150.14,5.78651444]
[1751275205754,8.65735043,150.15,150.14,5.78651444]
[1751275211862,6.6581,150.16,150.14,12.44531444]
[1751275212057,8.65685043,150.16,150.15,5.78651444]
[1751275212263,6.6581,150.16,150.15,5.78651444]
[1751275214266,8.65685043,150.16,150.15,5.78651444]
[1751275218072,6.6577,150.17,150.15,5.78651444]
[1751275218277,6.6577,150.17,150.16,5.78651444]
[1751275219472,1.99875043,150.19,150.16,5.78651444]
[1751275219671,1.99875043,150.19,150.15,1.99875043]
[1751275219871,1.99875043,150.19,150.16,5.75658106]
[1751275220067,1.99875043,150.19,150.17,5.75658106]
[1751275220376,8.65565043,150.19,150.16,6.6576]
[1751275220573,8.65565043,150.19,150.17,5.75596776]
[1751275220878,8.65595043,150.18,150.15,8.65665043]
[1751275221170,8.65595043,150.18,150.16,5.74680857]
[1751275221360,8.65595043,150.18,150.17,5.74680857]
[1751275224877,6.6585,150.15,150.12,8.42469094]
[1751275225071,8.65725043,150.15,150.13,5.75024135]
[1751275225273,8.65725043,150.15,150.14,5.75024135]
[1751275228376,1.99875043,150.15,150.14,5.75024135]
[1751275230078,8.65695043,150.16,150.14,5.75024135]
[1751275230279,8.65695043,150.16,150.15,5.75024135]
[1751275231780,1.99875043,150.16,150.15,12.40854135]
[1751275231982,1.99875043,150.17,150.15,12.40854135]
[1751275232177,1.99875043,150.17,150.16,5.75024135]
[1751275232479,4.4238,150.21,150.16,12.40804135]
[1751275232680,1.99875043,150.18,150.17,5.75778259]
[1751275233382,8.65575043,150.18,150.17,5.75778259]
[1751275239586,1.99875043,150.18,150.12,11.75]
[1751275239785,1.99875043,150.13,150.12,11.75]
[1751275241189,8.65795043,150.13,150.12,11.75]
[1751275242797,8.65795043,150.13,150.1,12.80189094]
[1751275242991,1.99875043,150.12,150.1,12.80189094]
[1751275245100,8.65855043,150.12,150.1,6.14159094]
[1751275246593,1.99875043,150.11,150.1,6.14159094]
[1751275246795,1.99875043,150.11,150.09,27.58239094]
[1751275249099,8.65855043,150.12,150.09,27.58239094]
[1751275249800,8.65895043,150.11,150.09,20.92159094]
[1751275251500,8.65895043,150.11,150.1,5.74598252]
[1751275253403,1.99875043,150.11,150.1,5.74598252]
[1751275255804,8.65885043,150.11,150.1,5.74598252]
[1751275256200,8.65885043,150.11,150.09,14.78]
[1751275256406,8.65925043,150.1,150.09,14.78]
[1751275256709,8.65925043,150.1,150.09,20.53002738]
[1751275257204,8.65925043,150.1,150.06,6.14159094]
[1751275257403,6.7395,150.16,150.04,8.18878792]
[1751275257404,8.66065043,150.07,150.04,12.80459094]
[1751275257605,1.99875043,150.05,150.04,6.663]
[1751275258905,1.99875043,150.05,150.03,6.6634]
[1751275259810,6.6624,150.06,150.03,6.6634]
[1751275260205,3.12708466,150.07,150.04,6.6632]
[1751275260406,3.12708466,150.07,150.02,8.39059094]
[1751275260813,3.12708466,150.07,150.03,6.6634]
[1751275261607,9.86658466,150.16,150.02,2.249]
[1751275261800,3.12708466,150.09,150.02,8.39059094]
[1751275262206,9.78828466,150.09,150.02,8.39059094]
[1751275262406,3.12708466,150.09,150.02,8.39059094]
[1751275262605,6.6618,150.08,150.03,3.12708466]
[1751275262910,3.12708466,150.09,150.05,6.6627]
[1751275263712,6.6614,150.08,150.06,6.68202101]
[1751275264011,6.6614,150.08,150.07,6.68202101]
[1751275264515,6.6614,150.08,150.05,6.6627]
[1751275264813,9.78828466,150.09,150.06,13.34280703]
[1751275265113,9.78828466,150.09,150.06,6.6623]
[1751275266810,6.6615,150.08,150.06,6.6623]
[1751275267513,9.78828466,150.09,150.06,6.6623]
[1751275268318,9.78828466,150.09,150.03,3.12708466]
[1751275268319,6.6614,150.08,150.05,6.6625]
[1751275268520,6.6614,150.08,150.06,6.67869677]
[1751275268815,6.6614,150.08,150.05,6.6625]
[1751275269014,6.6619,150.07,150.06,6.67869682]
[1751275269416,3.12708466,150.09,150.06,6.67869682]
[1751275269621,6.6617,150.08,150.05,6.6625]
[1751275269810,6.6617,150.08,150.06,6.67849038]
[1751275270111,6.6617,150.08,150.05,6.6625]
[1751275270307,6.6617,150.08,150.06,6.67801768]
[1751275270509,6.6617,150.08,150.05,6.6625]
[1751275270714,6.6617,150.08,150.06,6.66585926]
[1751275270922,6.6617,150.08,150.06,6.6623]
[1751275271115,6.6617,150.08,150.07,6.66531977]
[1751275271514,3.12708466,150.09,150.07,6.66531977]
[1751275271515,9.78828466,150.09,150.07,6.66531977]
[1751275271718,9.78828466,150.09,150.06,6.6623]
[1751275271920,9.78828466,150.09,150.07,6.66545437]
[1751275272216,9.78828466,150.09,150.06,6.6623]
[1751275272420,3.12708466,150.11,150.07,6.66545437]
[1751275272619,3.12708466,150.11,150.08,6.66545437]
[1751275272916,6.6612,150.09,150.06,6.662]
[1751275273116,6.6612,150.09,150.07,12.38812938]
[1751275273420,6.6612,150.09,150.08,6.66344291]
[1751275278124,6.6612,150.09,150.08,12.38330062]
[1751275279821,8.66151705,150.09,150.08,12.38330062]
[1751275282825,8.66151705,150.09,150.08,12.38142636]
[1751275286938,8.66151705,150.09,150.08,6.66156865]
[1751275286939,8.66220595,150.09,150.08,6.66156865]
[1751275287736,8.66220595,150.09,150.08,12.39625347]
[1751275289040,8.66170595,150.1,150.08,12.39625347]
[1751275289232,8.66170595,150.1,150.09,6.69315904]
[1751275289634,2.00100595,150.1,150.09,6.69315904]
[1751275289835,6.7395,150.16,150.09,6.69315904]
[1751275290136,2.00100595,150.17,150.12,2.00100595]
[1751275290339,2.00100595,150.17,150.13,7.73376325]
[1751275290340,6.6584,150.15,150.13,7.73376325]
[1751275290544,6.6584,150.15,150.14,5.7327573]
[1751275290840,20.0788,150.22,150.14,5.7327573]
[1751275291041,20.0788,150.22,150.13,2.00100595]
[1751275291243,6.7677,150.22,150.11,13.82]
[1751275291439,1.99827228,150.12,150.11,13.82]
[1751275291742,3.12450856,150.13,150.11,20.51506742]
[1751275291937,6.6597,150.12,150.11,13.82]
[1751275292138,6.6597,150.12,150.11,20.51506743]
[1751275292741,6.6597,150.12,150.11,26.20009513]
[1751275293042,6.6597,150.12,150.11,19.5050277]
[1751275294239,6.6594,150.13,150.11,13.82]
[1751275294442,3.12450856,150.14,150.11,13.82]
[1751275295545,6.6597,150.12,150.11,13.82]
[1751275295844,6.6597,150.12,150.11,19.48769932]
[1751275297847,9.78420856,150.12,150.11,3.5549]
[1751275298246,3.12450856,150.12,150.06,6.17774874]